[Event "*** Titled Tuesday 3|2 Blitz"]
[Site "Chess.com"]
[Date "2015.03.03"]
[Round "5"]
[White "jcibarra"]
[Black "MITerryble"]
[Result "0-1"]
[WhiteElo "2529"]
[BlackElo "2523"]
[TimeControl "180+2"]
[EndTime "12:02:13 PST"]
[Termination "MITerryble won by resignation"]

1. e4 {[%clk 0:03:00]} 1... e6 {[%clk 0:02:58.8]} 2. d4 {[%clk 0:03:01]} 2... d5
{[%clk 0:03:00]} 3. Nd2 {[%clk 0:03:02.7]} 3... Be7 {[%clk 0:03:01]} 4. e5
{[%clk 0:02:59.8]} 4... c5 {[%clk 0:03:01.7]} 5. Qg4 {[%clk 0:02:59]} 5... Kf8
{[%clk 0:03:02.7]} 6. dxc5 {[%clk 0:02:59]} 6... Nc6 {[%clk 0:03:03.4]} 7. Qe2
{[%clk 0:02:53.3]} 7... Bxc5 {[%clk 0:02:58.9]} 8. Nb3 {[%clk 0:02:53.1]} 8...
Bb6 {[%clk 0:02:58.6]} 9. f4 {[%clk 0:02:53.3]} 9... Nh6 {[%clk 0:02:57.8]} 10.
Be3 {[%clk 0:02:45.6]} 10... Nf5 {[%clk 0:02:52]} 11. Bxb6 {[%clk 0:02:46.1]}
11... Qxb6 {[%clk 0:02:53.9]} 12. Nf3 {[%clk 0:02:42.7]} 12... a5 {[%clk
0:02:51.2]} 13. a4 {[%clk 0:02:09]} 13... Bd7 {[%clk 0:02:45]} 14. Qd2 {[%clk
0:01:51.3]} 14... Nb4 {[%clk 0:01:52]} 15. c3 {[%clk 0:01:34.7]} 15... Na6
{[%clk 0:01:52.9]} 16. Nbd4 {[%clk 0:01:32.6]} 16... Nxd4 {[%clk 0:01:52]} 17.
Nxd4 {[%clk 0:01:34.5]} 17... Nc5 {[%clk 0:01:53.1]} 18. Bb5 {[%clk 0:01:29.7]}
18... Bxb5 {[%clk 0:01:50.5]} 19. axb5 {[%clk 0:01:31]} 19... Ne4 {[%clk
0:01:47.7]} 20. Qe3 {[%clk 0:01:30.2]} 20... g6 {[%clk 0:01:42.4]} 21. O-O
{[%clk 0:01:28.7]} 21... h5 {[%clk 0:01:33.3]} 22. Ra4 {[%clk 0:01:19.6]} 22...
Kg8 {[%clk 0:01:27.1]} 23. Rfa1 {[%clk 0:01:15.1]} 23... Kh7 {[%clk 0:01:26.5]}
24. h3 {[%clk 0:01:03.6]} 24... h4 {[%clk 0:01:03.8]} 25. Kh2 {[%clk 0:01:02.2]}
25... Ng3 {[%clk 0:00:57.8]} 26. Qf3 {[%clk 0:00:56.5]} 26... Kg7 {[%clk
0:00:50.4]} 27. b4 {[%clk 0:00:55.5]} 27... Rac8 {[%clk 0:00:46.3]} 28. bxa5
{[%clk 0:00:56.1]} 28... Qc7 {[%clk 0:00:46.9]} 29. R1a3 {[%clk 0:00:46]} 29...
Ne4 {[%clk 0:00:40.7]} 30. a6 {[%clk 0:00:24.8]} 30... b6 {[%clk 0:00:31]} 31.
a7 {[%clk 0:00:23.1]} 31... Ra8 {[%clk 0:00:29.1]} 32. Nc6 {[%clk 0:00:23.1]}
32... Rh5 {[%clk 0:00:23.2]} 33. Rxe4 {[%clk 0:00:21.4]} 33... dxe4 {[%clk
0:00:23]} 34. Qxe4 {[%clk 0:00:23.3]} 34... Rf5 {[%clk 0:00:21.5]} 35. c4 {[%clk
0:00:20.7]} 35... Qd7 {[%clk 0:00:14.8]} 36. Rd3 {[%clk 0:00:19.9]} 36... Qc7
{[%clk 0:00:15.9]} 37. Ra3 {[%clk 0:00:17.5]} 37... Qd7 {[%clk 0:00:16.8]} 38.
Rd3 {[%clk 0:00:09.8]} 38... Qc7 {[%clk 0:00:17.6]} 39. Qe3 {[%clk 0:00:10.7]}
39... Rxa7 {[%clk 0:00:17.6]} 40. Nxa7 {[%clk 0:00:11.8]} 40... Qxa7 {[%clk
0:00:19.5]} 41. Rd6 {[%clk 0:00:13.4]} 41... Qa4 {[%clk 0:00:18.8]} 42. Qd4
{[%clk 0:00:10.9]} 42... Qa3 {[%clk 0:00:19.4]} 43. Rxb6 {[%clk 0:00:11.6]}
43... Qg3+ {[%clk 0:00:20.1]} 44. Kh1 {[%clk 0:00:13]} 44... Rxf4 {[%clk
0:00:20.4]} 45. Qg1 {[%clk 0:00:14]} 45... Re4 {[%clk 0:00:16.9]} 46. Rd6 {[%clk
0:00:11.5]} 46... Re1 {[%clk 0:00:17.9]} 47. b6 {[%clk 0:00:11.2]} 47... Rxg1+
{[%clk 0:00:17.1]} 48. Kxg1 {[%clk 0:00:13.1]} 48... Qxe5 {[%clk 0:00:17.1]} 49.
Rc6 {[%clk 0:00:14.4]} 49... Qe4 {[%clk 0:00:17.5]} 50. Rc7 {[%clk 0:00:15.1]}
50... Qe3+ {[%clk 0:00:18]} 0-1

[Event "*** Titled Tuesday 3|2 Blitz"]
[Site "Chess.com"]
[Date "2015.03.03"]
[Round "5"]
[White "kharposh"]
[Black "ChessPsych0"]
[Result "0-1"]
[WhiteElo "2047"]
[BlackElo "2058"]
[TimeControl "180+2"]
[EndTime "12:02:47 PST"]
[Termination "ChessPsych0 won by checkmate"]

1. d4 {[%clk 0:03:00]} 1... Nf6 {[%clk 0:02:58.6]} 2. c4 {[%clk 0:03:01.4]} 2...
c5 {[%clk 0:02:59.8]} 3. Nf3 {[%clk 0:03:00.5]} 3... cxd4 {[%clk 0:02:58.1]} 4.
Nxd4 {[%clk 0:03:02.4]} 4... e5 {[%clk 0:02:59.2]} 5. Nb3 {[%clk 0:03:03.6]}
5... d5 {[%clk 0:03:00]} 6. cxd5 {[%clk 0:03:04.6]} 6... Qxd5 {[%clk 0:03:01.9]}
7. Nc3 {[%clk 0:02:59.4]} 7... Qxd1+ {[%clk 0:03:01.6]} 8. Kxd1 {[%clk
0:02:58.4]} 8... Bd7 {[%clk 0:02:23.4]} 9. f3 {[%clk 0:02:53.3]} 9... Nc6 {[%clk
0:02:21.4]} 10. e4 {[%clk 0:02:53.4]} 10... O-O-O {[%clk 0:02:20.6]} 11. Bg5
{[%clk 0:02:53.2]} 11... Be6+ {[%clk 0:02:17]} 12. Ke1 {[%clk 0:02:46.1]} 12...
Nb4 {[%clk 0:02:02.3]} 13. Rc1 {[%clk 0:02:46.4]} 13... Kb8 {[%clk 0:02:00.8]}
14. Be2 {[%clk 0:02:06.8]} 14... Nxa2 {[%clk 0:01:53]} 15. Nxa2 {[%clk
0:02:01.4]} 15... Bxb3 {[%clk 0:01:53.6]} 16. Nc3 {[%clk 0:02:02.9]} 16... Be7
{[%clk 0:01:43.1]} 17. h4 {[%clk 0:01:43.7]} 17... Rd7 {[%clk 0:01:25.1]} 18.
Be3 {[%clk 0:01:40.7]} 18... Rhd8 {[%clk 0:01:19.3]} 19. Kf2 {[%clk 0:01:41.3]}
19... b6 {[%clk 0:01:07.3]} 20. Bb5 {[%clk 0:01:37]} 20... Rc7 {[%clk 0:01:04]}
21. Be2 {[%clk 0:01:30]} 21... Bc5 {[%clk 0:01:04.1]} 22. Nb5 {[%clk 0:01:25.1]}
22... Bxe3+ {[%clk 0:01:02.9]} 23. Kxe3 {[%clk 0:01:26.1]} 23... Rxc1 {[%clk
0:00:56.5]} 24. Rxc1 {[%clk 0:01:28]} 24... a6 {[%clk 0:00:51]} 25. Nc7 {[%clk
0:01:24.8]} 25... a5 {[%clk 0:00:35]} 26. Na6+ {[%clk 0:01:24.5]} 26... Kb7
{[%clk 0:00:34.7]} 27. Rc7+ {[%clk 0:01:24.2]} 27... Ka8 {[%clk 0:00:33]} 28.
Re7 {[%clk 0:01:20.5]} 28... Rd7 {[%clk 0:00:30.1]} 29. Rxe5 {[%clk 0:01:15.5]}
29... Ba4 {[%clk 0:00:21.2]} 30. g4 {[%clk 0:01:07.7]} 30... Kb7 {[%clk
0:00:22]} 31. g5 {[%clk 0:01:05.2]} 31... Ng8 {[%clk 0:00:19.9]} 32. Re8 {[%clk
0:00:59.9]} 32... Rd3+ {[%clk 0:00:19.4]} 33. Bxd3 {[%clk 0:00:59.8]} 33... Bxe8
{[%clk 0:00:21.3]} 34. Kd4 {[%clk 0:00:55.1]} 34... Ne7 {[%clk 0:00:20.9]} 35.
Ke5 {[%clk 0:00:54.2]} 35... Kc6 {[%clk 0:00:20.4]} 36. Bb5+ {[%clk 0:00:52.4]}
36... Kxb5 {[%clk 0:00:19.1]} 37. Nc7+ {[%clk 0:00:53.2]} 37... Kb4 {[%clk
0:00:15.2]} 38. Nxe8 {[%clk 0:00:55]} 38... Kb3 {[%clk 0:00:13.4]} 39. Nxg7
{[%clk 0:00:53.7]} 39... Kxb2 {[%clk 0:00:12.9]} 40. Kf6 {[%clk 0:00:50.1]}
40... a4 {[%clk 0:00:07.7]} 41. Kxe7 {[%clk 0:00:50.7]} 41... a3 {[%clk
0:00:08.9]} 42. Nf5 {[%clk 0:00:51.8]} 42... a2 {[%clk 0:00:09.9]} 43. Ne3
{[%clk 0:00:52.6]} 43... a1=Q {[%clk 0:00:10]} 44. Nc4+ {[%clk 0:00:54.2]} 44...
Kc3 {[%clk 0:00:11]} 45. Nd6 {[%clk 0:00:52.1]} 45... Qa3 {[%clk 0:00:07.6]} 46.
Kd7 {[%clk 0:00:52.4]} 46... Qc5 {[%clk 0:00:08.7]} 47. Nxf7 {[%clk 0:00:51.9]}
47... b5 {[%clk 0:00:07.6]} 48. e5 {[%clk 0:00:52.9]} 48... Qd5+ {[%clk
0:00:08.1]} 49. Ke7 {[%clk 0:00:52.1]} 49... b4 {[%clk 0:00:08.1]} 50. e6 {[%clk
0:00:53.4]} 50... b3 {[%clk 0:00:09.2]} 51. Nd6 {[%clk 0:00:53.4]} 51... b2
{[%clk 0:00:07.9]} 52. Ne4+ {[%clk 0:00:54.5]} 52... Kb4 {[%clk 0:00:08.1]} 53.
Kf6 {[%clk 0:00:52.1]} 53... b1=Q {[%clk 0:00:06.9]} 54. e7 {[%clk 0:00:53.8]}
54... Qb2+ {[%clk 0:00:07.9]} 55. Nc3 {[%clk 0:00:47.2]} 55... Qxc3# {[%clk
0:00:08.3]} 0-1

[Event "*** Titled Tuesday 3|2 Blitz"]
[Site "Chess.com"]
[Date "2015.03.03"]
[Round "5"]
[White "ViennaRocket"]
[Black "gumersindo"]
[Result "0-1"]
[WhiteElo "2182"]
[BlackElo "2101"]
[TimeControl "180+2"]
[EndTime "12:03:16 PST"]
[Termination "gumersindo won by resignation"]

1. d4 {[%clk 0:03:00]} 1... d5 {[%clk 0:02:58.1]} 2. c4 {[%clk 0:03:01]} 2... c6
{[%clk 0:02:55.9]} 3. cxd5 {[%clk 0:03:02.1]} 3... cxd5 {[%clk 0:02:56.8]} 4.
Nc3 {[%clk 0:03:03.6]} 4... Nf6 {[%clk 0:02:58]} 5. f3 {[%clk 0:03:05.1]} 5...
Nc6 {[%clk 0:02:48.3]} 6. e4 {[%clk 0:03:04.9]} 6... e6 {[%clk 0:02:49.2]} 7. e5
{[%clk 0:03:05.4]} 7... Nd7 {[%clk 0:02:50]} 8. f4 {[%clk 0:03:05.8]} 8... Qb6
{[%clk 0:02:36]} 9. Nf3 {[%clk 0:03:01.5]} 9... Be7 {[%clk 0:02:36.2]} 10. Be2
{[%clk 0:03:01.1]} 10... O-O {[%clk 0:02:37.3]} 11. O-O {[%clk 0:03:01.4]} 11...
f6 {[%clk 0:02:38.8]} 12. Kh1 {[%clk 0:02:59.8]} 12... fxe5 {[%clk 0:02:37.3]}
13. fxe5 {[%clk 0:02:57.1]} 13... Rxf3 {[%clk 0:02:19.2]} 14. Bxf3 {[%clk
0:02:54.6]} 14... Qxd4 {[%clk 0:02:19.8]} 15. Qxd4 {[%clk 0:02:51.2]} 15... Nxd4
{[%clk 0:02:20.2]} 16. Bf4 {[%clk 0:02:52.5]} 16... a6 {[%clk 0:02:14.9]} 17.
Rad1 {[%clk 0:02:49.9]} 17... Nxf3 {[%clk 0:02:07.2]} 18. gxf3 {[%clk
0:02:47.7]} 18... Nb6 {[%clk 0:02:01.9]} 19. b3 {[%clk 0:02:43.9]} 19... Bd7
{[%clk 0:02:02.3]} 20. Be3 {[%clk 0:02:41.1]} 20... Nc8 {[%clk 0:01:58.4]} 21.
f4 {[%clk 0:02:39.6]} 21... g6 {[%clk 0:01:58.1]} 22. Ne2 {[%clk 0:02:21.9]}
22... Bd8 {[%clk 0:01:50.9]} 23. Nd4 {[%clk 0:02:14.7]} 23... Ne7 {[%clk
0:01:51.4]} 24. Rc1 {[%clk 0:02:12.4]} 24... Nc6 {[%clk 0:01:52]} 25. Kg2 {[%clk
0:02:09]} 25... Be7 {[%clk 0:01:49.7]} 26. Kf3 {[%clk 0:02:06.5]} 26... Rf8
{[%clk 0:01:49.1]} 27. Ke2 {[%clk 0:02:07.4]} 27... Rc8 {[%clk 0:01:42.1]} 28.
Bf2 {[%clk 0:01:58.6]} 28... Ba3 {[%clk 0:01:40.1]} 29. Rcd1 {[%clk 0:01:52.6]}
29... Nb4 {[%clk 0:01:38.3]} 30. Rd2 {[%clk 0:01:47]} 30... Kf7 {[%clk 0:01:33]}
31. h4 {[%clk 0:01:46.9]} 31... Nc6 {[%clk 0:01:11.6]} 32. Nxc6 {[%clk
0:01:46.9]} 32... Bxc6 {[%clk 0:01:10.7]} 33. Rh1 {[%clk 0:01:46.2]} 33... Bb5+
{[%clk 0:01:10.6]} 34. Kf3 {[%clk 0:01:46.4]} 34... Rc3+ {[%clk 0:01:10.2]} 35.
Kg2 {[%clk 0:01:47.4]} 35... Bc1 {[%clk 0:01:05.2]} 36. Rd4 {[%clk 0:01:24.7]}
36... Rc2 {[%clk 0:01:01.6]} 37. Kg3 {[%clk 0:01:18.2]} 37... Bb2 {[%clk
0:00:53.5]} 38. Rdd1 {[%clk 0:01:13.4]} 38... Bc6 {[%clk 0:00:53.9]} 39. Bd4
{[%clk 0:01:10.2]} 39... Bxd4 {[%clk 0:00:53.5]} 40. Rxd4 {[%clk 0:01:11.2]}
40... Rxa2 {[%clk 0:00:54.7]} 41. h5 {[%clk 0:01:12.8]} 41... Kg7 {[%clk
0:00:52.9]} 42. hxg6 {[%clk 0:01:10.8]} 42... hxg6 {[%clk 0:00:53.8]} 43. Rg1
{[%clk 0:01:09.4]} 43... Rc2 {[%clk 0:00:50]} 44. Rd3 {[%clk 0:01:04.8]} 44...
Bb5 {[%clk 0:00:49.4]} 45. Rf3 {[%clk 0:01:03.6]} 45... d4 {[%clk 0:00:50.5]}
46. Rd1 {[%clk 0:00:59.4]} 46... d3 {[%clk 0:00:48]} 47. Rf2 {[%clk 0:01:00.2]}
47... Rc3 {[%clk 0:00:45.9]} 48. Rb2 {[%clk 0:00:58.3]} 48... Bc6 {[%clk
0:00:46.6]} 49. Kf2 {[%clk 0:00:58.6]} 49... Be4 {[%clk 0:00:47.2]} 50. Ke3
{[%clk 0:00:59.5]} 50... Bf5 {[%clk 0:00:48.6]} 51. b4 {[%clk 0:00:57.7]} 51...
Rc4 {[%clk 0:00:46.4]} 52. Rdd2 {[%clk 0:00:57.2]} 52... Re4+ {[%clk 0:00:43.9]}
53. Kf3 {[%clk 0:00:57.3]} 53... Rd4 {[%clk 0:00:43.5]} 54. b5 {[%clk
0:00:57.7]} 54... a5 {[%clk 0:00:44.2]} 55. b6 {[%clk 0:00:58.5]} 55... a4
{[%clk 0:00:37.4]} 56. Rb5 {[%clk 0:00:58]} 56... Rc4 {[%clk 0:00:35.6]} 57. Ra5
{[%clk 0:00:56.9]} 57... Rc2 {[%clk 0:00:31.8]} 58. Ke3 {[%clk 0:00:57.8]} 58...
Rc4 {[%clk 0:00:32.4]} 59. Rb2 {[%clk 0:00:52.9]} 59... g5 {[%clk 0:00:31.7]}
60. fxg5 {[%clk 0:00:52.3]} 60... Kg6 {[%clk 0:00:32.8]} 61. Ra7 {[%clk
0:00:52]} 61... Be4 {[%clk 0:00:32.3]} 62. Rf2 {[%clk 0:00:44.5]} 62... Kxg5
{[%clk 0:00:32]} 63. Rf4 {[%clk 0:00:41.2]} 63... d2 {[%clk 0:00:22.9]} 64. Rf1
{[%clk 0:00:41.4]} 64... Rc1 {[%clk 0:00:21.5]} 0-1

[Event "*** Titled Tuesday 3|2 Blitz"]
[Site "Chess.com"]
[Date "2015.03.03"]
[Round "5"]
[White "megarompa"]
[Black "EltajSafarli"]
[Result "1/2-1/2"]
[WhiteElo "2648"]
[BlackElo "2677"]
[TimeControl "180+2"]
[EndTime "12:04:29 PST"]
[Termination "Game drawn - insufficient material"]

1. d4 {[%clk 0:03:00]} 1... Nf6 {[%clk 0:02:32.7]} 2. Nf3 {[%clk 0:03:00]} 2...
g6 {[%clk 0:02:19.5]} 3. Nc3 {[%clk 0:02:59.4]} 3... d5 {[%clk 0:02:18.9]} 4.
Bf4 {[%clk 0:02:57.9]} 4... Nbd7 {[%clk 0:02:07.5]} 5. Nb5 {[%clk 0:02:52.9]}
5... e5 {[%clk 0:01:42.4]} 6. dxe5 {[%clk 0:02:52.2]} 6... c6 {[%clk 0:01:43.3]}
7. Nc3 {[%clk 0:02:43.7]} 7... Nh5 {[%clk 0:01:40.5]} 8. Bg5 {[%clk 0:02:39.8]}
8... Be7 {[%clk 0:01:40.5]} 9. Bh6 {[%clk 0:02:39.7]} 9... Qb6 {[%clk
0:01:35.4]} 10. Qd2 {[%clk 0:02:18.9]} 10... Nc5 {[%clk 0:01:33.3]} 11. O-O-O
{[%clk 0:02:19.3]} 11... Be6 {[%clk 0:01:33.3]} 12. h3 {[%clk 0:02:07]} 12...
Ne4 {[%clk 0:01:31]} 13. Nxe4 {[%clk 0:02:05.2]} 13... dxe4 {[%clk 0:01:32.9]}
14. Nd4 {[%clk 0:02:06.9]} 14... Rd8 {[%clk 0:01:28.1]} 15. e3 {[%clk
0:02:03.8]} 15... f6 {[%clk 0:01:22.9]} 16. g4 {[%clk 0:01:47.1]} 16... fxe5
{[%clk 0:01:17.6]} 17. gxh5 {[%clk 0:01:48]} 17... exd4 {[%clk 0:01:13.9]} 18.
exd4 {[%clk 0:01:43.5]} 18... c5 {[%clk 0:01:15.2]} 19. Qf4 {[%clk 0:01:38.7]}
19... cxd4 {[%clk 0:01:12.6]} 20. Qxe4 {[%clk 0:01:36]} 20... Bd5 {[%clk
0:01:11.5]} 21. Qe5 {[%clk 0:01:37.3]} 21... Rg8 {[%clk 0:01:10.4]} 22. Rg1
{[%clk 0:01:17.8]} 22... Kf7 {[%clk 0:01:11.3]} 23. hxg6+ {[%clk 0:01:12.8]}
23... hxg6 {[%clk 0:01:09.9]} 24. Qf4+ {[%clk 0:01:00.3]} 24... Bf6 {[%clk
0:01:06.8]} 25. Bd3 {[%clk 0:01:00.3]} 25... Qd6 {[%clk 0:01:03]} 26. Qg4 {[%clk
0:00:49.3]} 26... Be6 {[%clk 0:01:04.2]} 27. Qf3 {[%clk 0:00:43.3]} 27... Bd5
{[%clk 0:00:58.8]} 28. Qg4 {[%clk 0:00:38.5]} 28... Be6 {[%clk 0:00:59.9]} 29.
Bxg6+ {[%clk 0:00:40.1]} 29... Ke7 {[%clk 0:00:56]} 30. Qf3 {[%clk 0:00:41.7]}
30... Qb6 {[%clk 0:00:53.4]} 31. Rde1 {[%clk 0:00:36.2]} 31... d3 {[%clk
0:00:51.6]} 32. c3 {[%clk 0:00:37.1]} 32... d2+ {[%clk 0:00:46.1]} 33. Bxd2
{[%clk 0:00:33.4]} 33... Rxd2 {[%clk 0:00:48]} 34. Kxd2 {[%clk 0:00:25.3]} 34...
Qxb2+ {[%clk 0:00:48.2]} 35. Kd1 {[%clk 0:00:26.5]} 35... Rd8+ {[%clk
0:00:43.2]} 36. Bd3 {[%clk 0:00:22.6]} 36... Rd6 {[%clk 0:00:37]} 37. Rg6 {[%clk
0:00:17]} 37... Qxc3 {[%clk 0:00:33.4]} 38. Re3 {[%clk 0:00:15.7]} 38... Qb2
{[%clk 0:00:31.2]} 39. Rxf6 {[%clk 0:00:13.6]} 39... Qxf6 {[%clk 0:00:33.1]} 40.
Qxf6+ {[%clk 0:00:14.3]} 40... Kxf6 {[%clk 0:00:35]} 41. Ke2 {[%clk 0:00:16.2]}
41... Bxa2 {[%clk 0:00:29.6]} 42. Rg3 {[%clk 0:00:18.1]} 42... Be6 {[%clk
0:00:27.8]} 43. h4 {[%clk 0:00:19.3]} 43... a5 {[%clk 0:00:28.1]} 44. h5 {[%clk
0:00:20.7]} 44... a4 {[%clk 0:00:29.3]} 45. h6 {[%clk 0:00:22.3]} 45... a3
{[%clk 0:00:20]} 46. h7 {[%clk 0:00:22.3]} 46... Rd8 {[%clk 0:00:20.6]} 47. Rf3+
{[%clk 0:00:23.8]} 47... Kg7 {[%clk 0:00:17.5]} 48. Rg3+ {[%clk 0:00:24.7]}
48... Kh8 {[%clk 0:00:13.4]} 49. Rg1 {[%clk 0:00:25.7]} 49... a2 {[%clk
0:00:14.5]} 50. f4 {[%clk 0:00:26.4]} 50... Ra8 {[%clk 0:00:11.1]} 51. Ra1
{[%clk 0:00:26.2]} 51... Ra5 {[%clk 0:00:12.3]} 52. Kd2 {[%clk 0:00:27.2]} 52...
b5 {[%clk 0:00:11]} 53. Kc3 {[%clk 0:00:28.5]} 53... Ra3+ {[%clk 0:00:06.9]} 54.
Kd4 {[%clk 0:00:30.1]} 54... b4 {[%clk 0:00:07.3]} 55. Bc4 {[%clk 0:00:28.3]}
55... b3 {[%clk 0:00:02.1]} 56. Kc3 {[%clk 0:00:24.7]} 56... b2+ {[%clk
0:00:04]} 57. Kxb2 {[%clk 0:00:26.3]} 57... Re3 {[%clk 0:00:04.8]} 58. Bxe6
{[%clk 0:00:27.2]} 58... Rxe6 {[%clk 0:00:06.7]} 59. Rxa2 {[%clk 0:00:28.8]}
59... Kxh7 {[%clk 0:00:08.3]} 60. Kc3 {[%clk 0:00:30.4]} 60... Kg6 {[%clk
0:00:09.9]} 61. Ra5 {[%clk 0:00:29.3]} 61... Rf6 {[%clk 0:00:10.6]} 62. Rg5+
{[%clk 0:00:29.7]} 62... Kh6 {[%clk 0:00:11.4]} 63. Rg4 {[%clk 0:00:31.6]} 63...
Kh5 {[%clk 0:00:13]} 64. Rg5+ {[%clk 0:00:33.1]} 64... Kh4 {[%clk 0:00:13.8]}
65. Rg8 {[%clk 0:00:33.4]} 65... Rxf4 {[%clk 0:00:15.2]} 66. Kd3 {[%clk
0:00:35]} 66... Rg4 {[%clk 0:00:17.1]} 67. Rf8 {[%clk 0:00:35.8]} 67... Kg3
{[%clk 0:00:18.1]} 68. Ke3 {[%clk 0:00:37.2]} 68... Rg7 {[%clk 0:00:19.6]} 69.
Rf3+ {[%clk 0:00:38.1]} 69... Kg4 {[%clk 0:00:21.1]} 70. Rf4+ {[%clk 0:00:39.4]}
70... Kg5 {[%clk 0:00:20.5]} 71. Re4 {[%clk 0:00:41.3]} 71... Rf7 {[%clk
0:00:21.5]} 72. Re5+ {[%clk 0:00:40.6]} 72... Rf5 {[%clk 0:00:22.1]} 73. Rxf5+
{[%clk 0:00:39.2]} 73... Kxf5 {[%clk 0:00:24]} 1/2-1/2

[Event "*** Titled Tuesday 3|2 Blitz"]
[Site "Chess.com"]
[Date "2015.03.03"]
[Round "5"]
[White "petrpalachev"]
[Black "Yaacovn"]
[Result "1/2-1/2"]
[WhiteElo "2443"]
[BlackElo "2531"]
[TimeControl "180+2"]
[EndTime "12:04:30 PST"]
[Termination "Game drawn - insufficient material"]

1. d4 {[%clk 0:03:00]} 1... Nf6 {[%clk 0:02:58.9]} 2. c4 {[%clk 0:03:01.5]} 2...
e5 {[%clk 0:02:58]} 3. dxe5 {[%clk 0:03:03.4]} 3... Ne4 {[%clk 0:02:59.4]} 4.
Qc2 {[%clk 0:03:01.5]} 4... Bb4+ {[%clk 0:03:00.1]} 5. Nc3 {[%clk 0:03:03.2]}
5... d5 {[%clk 0:03:01.1]} 6. Nf3 {[%clk 0:02:50.5]} 6... Bf5 {[%clk 0:03:01.6]}
7. Qb3 {[%clk 0:02:40.2]} 7... Bxc3+ {[%clk 0:02:58.8]} 8. bxc3 {[%clk
0:02:41.2]} 8... dxc4 {[%clk 0:02:51.9]} 9. Qxc4 {[%clk 0:02:32.2]} 9... O-O
{[%clk 0:02:51.6]} 10. Nd4 {[%clk 0:02:27.3]} 10... Bg6 {[%clk 0:02:50.7]} 11.
g3 {[%clk 0:02:14.8]} 11... c5 {[%clk 0:02:49.3]} 12. Nb5 {[%clk 0:01:31.1]}
12... Nc6 {[%clk 0:02:48.4]} 13. Bf4 {[%clk 0:01:28.4]} 13... Qa5 {[%clk
0:02:29.7]} 14. Nd6 {[%clk 0:00:26.6]} 14... Nd4 {[%clk 0:01:51.7]} 15. Rc1
{[%clk 0:00:16]} 15... b5 {[%clk 0:01:44.2]} 16. Nxb5 {[%clk 0:00:05.3]} 16...
Nxb5 {[%clk 0:01:44.1]} 17. f3 {[%clk 0:00:05.6]} 17... Nexc3 {[%clk 0:01:44.7]}
18. Bd2 {[%clk 0:00:06.5]} 18... Qa3 {[%clk 0:01:45.6]} 19. Rxc3 {[%clk
0:00:04.1]} 19... Nxc3 {[%clk 0:01:45.5]} 20. Bxc3 {[%clk 0:00:05.6]} 20... Rab8
{[%clk 0:01:23.6]} 21. Kf2 {[%clk 0:00:06.7]} 21... Rb1 {[%clk 0:01:24.4]} 22.
Bg2 {[%clk 0:00:07.9]} 22... Rxh1 {[%clk 0:01:25.1]} 23. Bxh1 {[%clk 0:00:09.8]}
23... h6 {[%clk 0:01:23.8]} 24. f4 {[%clk 0:00:11]} 24... Qc1 {[%clk 0:01:23.7]}
25. Bd5 {[%clk 0:00:11.9]} 25... Kh7 {[%clk 0:01:19.2]} 26. Qxc5 {[%clk
0:00:12.7]} 26... Bf5 {[%clk 0:01:17.1]} 27. Qxf8 {[%clk 0:00:12.9]} 27... Qxc3
{[%clk 0:01:18.1]} 28. Bf3 {[%clk 0:00:13.1]} 28... Be6 {[%clk 0:01:16.5]} 29.
Qa8 {[%clk 0:00:10.4]} 29... Qc5+ {[%clk 0:01:16.8]} 30. Kg2 {[%clk 0:00:11.3]}
30... Bxa2 {[%clk 0:01:17.9]} 31. Be4+ {[%clk 0:00:12.8]} 31... g6 {[%clk
0:01:18.9]} 32. Qb7 {[%clk 0:00:13.1]} 32... a5 {[%clk 0:01:16.7]} 33. Qa6
{[%clk 0:00:10.5]} 33... Bc4 {[%clk 0:01:14.6]} 34. Qf6 {[%clk 0:00:05]} 34...
Bd5 {[%clk 0:00:38.2]} 35. Bxd5 {[%clk 0:00:04.6]} 35... Qxd5+ {[%clk
0:00:40.1]} 36. Kf2 {[%clk 0:00:05.3]} 36... a4 {[%clk 0:00:41.2]} 37. e4 {[%clk
0:00:06.1]} 37... Qd4+ {[%clk 0:00:37]} 38. Kf3 {[%clk 0:00:07.2]} 38... Qd1+
{[%clk 0:00:38]} 39. Kf2 {[%clk 0:00:07.5]} 39... Qc2+ {[%clk 0:00:39]} 40. Kf3
{[%clk 0:00:07.5]} 40... Qb3+ {[%clk 0:00:40.2]} 41. Kg2 {[%clk 0:00:07.8]}
41... a3 {[%clk 0:00:39.4]} 42. f5 {[%clk 0:00:08.7]} 42... a2 {[%clk
0:00:32.1]} 43. fxg6+ {[%clk 0:00:09.7]} 43... fxg6 {[%clk 0:00:33]} 44. Qe7+
{[%clk 0:00:10.3]} 44... Kg8 {[%clk 0:00:34.4]} 45. Qe8+ {[%clk 0:00:05.9]}
45... Kg7 {[%clk 0:00:34.2]} 46. Qd7+ {[%clk 0:00:04.4]} 46... Kf8 {[%clk
0:00:26.8]} 47. e6 {[%clk 0:00:02.8]} 47... Qb2+ {[%clk 0:00:28.2]} 48. Kh3
{[%clk 0:00:03.7]} 48... Qf6 {[%clk 0:00:30.1]} 49. Qd6+ {[%clk 0:00:03.1]}
49... Qe7 {[%clk 0:00:27.8]} 50. Qa6 {[%clk 0:00:04.3]} 50... a1=Q {[%clk
0:00:17.8]} 51. Qxa1 {[%clk 0:00:05.2]} 51... Qxe6+ {[%clk 0:00:19.3]} 52. g4
{[%clk 0:00:06.5]} 52... Qxe4 {[%clk 0:00:18.2]} 53. Qh8+ {[%clk 0:00:07.2]}
53... Kf7 {[%clk 0:00:19.5]} 54. Qh7+ {[%clk 0:00:07.2]} 54... Kf6 {[%clk
0:00:20.8]} 55. Qxh6 {[%clk 0:00:03.5]} 55... Qf3+ {[%clk 0:00:21.6]} 56. Kh4
{[%clk 0:00:05]} 56... Qf2+ {[%clk 0:00:22.4]} 57. Kh3 {[%clk 0:00:06.3]} 57...
Qf3+ {[%clk 0:00:22.4]} 58. Kh4 {[%clk 0:00:07.8]} 58... Qf2+ {[%clk 0:00:23.3]}
59. Kh3 {[%clk 0:00:09.3]} 59... Qf1+ {[%clk 0:00:24.8]} 60. Kg3 {[%clk
0:00:10]} 60... Qd3+ {[%clk 0:00:25.9]} 61. Kf2 {[%clk 0:00:10.3]} 61... Qc2+
{[%clk 0:00:27.1]} 62. Ke1 {[%clk 0:00:10.4]} 62... Qb1+ {[%clk 0:00:28.2]} 63.
Ke2 {[%clk 0:00:10.9]} 63... Qe4+ {[%clk 0:00:28.5]} 64. Kf2 {[%clk 0:00:12.2]}
64... Qxg4 {[%clk 0:00:27.9]} 65. Qf8+ {[%clk 0:00:12.5]} 65... Kg5 {[%clk
0:00:27.9]} 66. Qd8+ {[%clk 0:00:13]} 66... Kf4 {[%clk 0:00:25.9]} 67. Qd4+
{[%clk 0:00:10.3]} 67... Kf5 {[%clk 0:00:27.8]} 68. Qd7+ {[%clk 0:00:10.9]}
68... Kg5 {[%clk 0:00:28.9]} 69. Qe7+ {[%clk 0:00:10]} 69... Kf5 {[%clk
0:00:29.9]} 70. Qc5+ {[%clk 0:00:09.3]} 70... Kf6 {[%clk 0:00:30.5]} 71. Qf8+
{[%clk 0:00:07.9]} 71... Ke5 {[%clk 0:00:30.3]} 72. Qg7+ {[%clk 0:00:03.3]}
72... Kd5 {[%clk 0:00:30]} 73. Qf7+ {[%clk 0:00:04]} 73... Ke5 {[%clk 0:00:31]}
74. Qe7+ {[%clk 0:00:04.9]} 74... Kf5 {[%clk 0:00:31.8]} 75. Qd7+ {[%clk
0:00:06.1]} 75... Kg5 {[%clk 0:00:33.1]} 76. Qd8+ {[%clk 0:00:07.6]} 76... Kf5
{[%clk 0:00:33.3]} 77. Qc8+ {[%clk 0:00:08.8]} 77... Kg5 {[%clk 0:00:34.4]} 78.
Qd8+ {[%clk 0:00:10.3]} 78... Kf4 {[%clk 0:00:35.3]} 79. Qd6+ {[%clk 0:00:10.9]}
79... Ke4 {[%clk 0:00:35.5]} 80. Qe7+ {[%clk 0:00:11.3]} 80... Kd5 {[%clk
0:00:36.1]} 81. Qf7+ {[%clk 0:00:11.7]} 81... Kc6 {[%clk 0:00:36.6]} 82. Qf3+
{[%clk 0:00:12.2]} 82... Qxf3+ {[%clk 0:00:38.1]} 83. Kxf3 {[%clk 0:00:14.1]}
83... Kd6 {[%clk 0:00:40]} 84. Kg4 {[%clk 0:00:15.8]} 84... Ke7 {[%clk
0:00:41.9]} 85. Kg5 {[%clk 0:00:17.4]} 85... Kf7 {[%clk 0:00:43.8]} 86. Kh6
{[%clk 0:00:18.4]} 86... Kf6 {[%clk 0:00:45.1]} 87. h4 {[%clk 0:00:19.8]} 87...
Kf5 {[%clk 0:00:46.1]} 88. Kg7 {[%clk 0:00:21.1]} 88... g5 {[%clk 0:00:44.9]}
89. hxg5 {[%clk 0:00:13.2]} 89... Kxg5 {[%clk 0:00:46]} 1/2-1/2